[Event "AZE-ch Women 2019"]
[Site "Baku"]
[Date "2019.02.06"]
[Round "3.1"]
[White "Gasimova, Samra"]
[Black "Mamedjarova, Zeinab"]
[Result "0-1"]
[ECO "E00"]
[WhiteElo "1693"]
[BlackElo "2307"]
[Annotator "ChessBase"]
[PlyCount "104"]
[EventDate "2019.02.04"]
[EventType "swiss"]
[EventCountry "AZE"]
[SourceTitle "playchess.com"]
[Source "ChessBase"]
[SourceQuality "1"]
[TimeControl "40/5400+30:1800+30"]

1. d4 {[%emt 0:00:00]} e6 {[%emt 0:00:12]} 2. c4 {[%emt 0:00:00]} Nf6 {[%emt 0:02:40]} 3. Nc3 {[%emt 0:00:00]} Be7 {[%emt 0:01:05]} 4. e3 {[%emt 0:00:24]} O-O {[%emt 0:00:30]} 5. Bd3 {[%emt 0:00:19]} d5 {[%emt 0:03:36]} 6. Nge2 {[%emt 0:00:50]} c5 {[%emt 0:03:18]} 7. O-O {[%emt 0:04:16]} dxc4 {[%emt 0:10:29]} 8. Bxc4 {[%emt 0:00:14]} Nc6 {[%emt 0:00:04]} 9. b3 {[%emt 0:04:44]} cxd4 {[%emt 0:08:43]} 10. Nxd4 {[%emt 0:01:51]} Ne5 {[%emt 0:09:32]} 11. Be2 {[%emt 0:03:10]} Qa5 {[%emt 0:00:13]} 12. Bb2 {[%emt 0:04:41]} Bd7 {[%emt 0:00:11]} 13. a3 {[%emt 0:06:58]} Rac8 {[%emt 0:02:54]} 14. Qd2 {[%emt 0:04:03]} Rfd8 {[%emt 0:02:30]} 15. Rfd1 {[%emt 0:01:59]} Qb6 {[%emt 0:05:45]} 16. b4 {[%emt 0:02:46]} Nc4 {[%emt 0:03:33]} 17. Bxc4 {[%emt 0:01:16]} Rxc4 {[%emt 0:00:21]} 18. Rac1 {[%emt 0:01:15]} a5 {[%emt 0:10:55]} 19. bxa5 {[%emt 0:12:02]} Qxa5 {[%emt 0:02:04]} 20. Ne4 {[%emt 0:01:17]} Rxc1 {[%emt 0:05:46]} 21. Rxc1 {[%emt 0:00:42]} Qd5 {[%emt 0:05:16]} 22. Nc3 {[%emt 0:08:29]} Qh5 {[%emt 0:04:21]} 23. Qe2 {[%emt 0:02:09]} Qa5 {[%emt 0:00:13]} 24. Qc4 {[%emt 0:08:22]} e5 {[%emt 0:04:04]} 25. Nf3 {[%emt 0:04:46]} h6 {[%emt 0:02:06]} 26. h3 {[%emt 0:00:52]} Bc6 {[%emt 0:01:01]} 27. e4 {[%emt 0:06:40]} Rc8 {[%emt 0:05:55]} 28. Nd5 {[%emt 0:04:39]} Nxd5 {[%emt 0:00:26]} 29. exd5 {[%emt 0:00:15]} Bd7 {[%emt 0:00:38]} 30. Qd3 {[%emt 0:00:44]} Rxc1+ {[%emt 0:00:48]} 31. Bxc1 {[%emt 0:00:06]} Bd6 {[%emt 0:00:19]} 32. Bd2 {[%emt 0:10:12]} Qa4 {[%emt 0:00:26]} 33. Bb4 {[%emt 0:01:46]} Bxb4 {[%emt 0:01:36]} 34. axb4 {[%emt 0:00:12]} Qxb4 {[%emt 0:00:27]} 35. Qe3 {[%emt 0:01:45]} f6 {[%emt 0:01:09]} 36. Nd2 {[%emt 0:01:00]} Qd4 {[%emt 0:01:27]} 37. Qxd4 {[%emt 0:01:22]} exd4 {[%emt 0:00:08]} 38. Kf1 {[%emt 0:00:15]} Bb5+ {[%emt 0:01:42]} 39. Ke1 {[%emt 0:00:24]} Kf7 {[%emt 0:00:27]} 40. Nf3 {[%emt 0:00:00]} d3 {[%emt 0:00:00]} 41. Kd2 {[%emt 0:01:36]} Bc4 {[%emt 0:03:15]} 42. d6 {[%emt 0:03:32]} Ke6 {[%emt 0:06:35]} 43. Kc3 {[%emt 0:01:20]} b5 {[%emt 0:00:57]} 44. Nd2 {[%emt 0:03:44]} Kxd6 {[%emt 0:01:15]} 45. Ne4+ {[%emt 0:00:33]} Ke5 {[%emt 0:04:25]} 46. Nc5 {[%emt 0:00:52]} d2 {[%emt 0:02:04]} 47. Kxd2 {[%emt 0:00:19]} Bf1 {[%emt 0:00:37]} 48. g3 {[%emt 0:00:47]} Bxh3 {[%emt 0:00:39]} 49. Nd3+ {[%emt 0:00:41]} Ke4 {[%emt 0:01:02]} 50. Nf4 {[%emt 0:00:26]} Bg4 {[%emt 0:00:56]} 51. Nd3 {[%emt 0:02:54]} g5 {[%emt 0:01:57]} 52. Ne1 {[%emt 0:01:04]} h5 {[%emt 0:00:26]} 0-1

[Event "AZE-ch Women 2019"]
[Site "Baku"]
[Date "2019.02.06"]
[Round "3.3"]
[White "Beydullayeva, Govhar"]
[Black "Mamedjarova, Turkan"]
[Result "1/2-1/2"]
[ECO "A13"]
[WhiteElo "2239"]
[BlackElo "2267"]
[Annotator "ChessBase"]
[PlyCount "164"]
[EventDate "2019.02.04"]
[EventType "swiss"]
[EventCountry "AZE"]
[SourceTitle "playchess.com"]
[Source "ChessBase"]
[SourceQuality "1"]
[TimeControl "40/5400+30:1800+30"]

1. c4 {[%emt 0:00:00]} e6 {[%emt 0:00:31]} 2. g3 {[%emt 0:00:21]} d5 {[%emt 0:00:54]} 3. Nf3 {[%emt 0:00:37]} Nf6 {[%emt 0:00:07]} 4. Bg2 {[%emt 0:00:12]} Be7 {[%emt 0:03:37]} 5. d4 {[%emt 0:00:25]} O-O {[%emt 0:00:33]} 6. O-O {[%emt 0:00:05]} dxc4 {[%emt 0:00:35]} 7. Qc2 {[%emt 0:01:04]} b6 {[%emt 0:02:03]} 8. Ne5 {[%emt 0:17:34]} Qxd4 {[%emt 0:01:06]} 9. Bxa8 {[%emt 0:09:26]} Qxe5 {[%emt 0:01:28]} 10. Bf3 {[%emt 0:03:39]} Nd5 {[%emt 0:08:36]} 11. Qxc4 {[%emt 0:10:30]} c5 {[%emt 0:22:11]} 12. Nc3 {[%emt 0:10:38]} Ba6 13. Qe4 {[%emt 0:00:27]} Qxe4 {[%emt 0:05:03]} 14. Nxe4 {[%emt 0:03:17]} Nc6 {[%emt 0:05:05]} 15. Nc3 {[%emt 0:13:21]} Nxc3 {[%emt 0:05:54]} 16. bxc3 {[%emt 0:00:15]} Ne5 {[%emt 0:00:33]} 17. Kg2 {[%emt 0:08:35]} Bf6 {[%emt 0:17:33]} 18. Bd2 {[%emt 0:00:22]} g5 {[%emt 0:02:45]} 19. h3 {[%emt 0:02:22]} Rd8 {[%emt 0:02:27]} 20. Rfd1 {[%emt 0:04:14]} Bc4 {[%emt 0:05:55]} 21. Be1 {[%emt 0:01:51]} Rc8 {[%emt 0:05:10]} 22. Bd2 {[%emt 0:01:03]} Kg7 {[%emt 0:00:39]} 23. Rdc1 {[%emt 0:02:47]} Rd8 {[%emt 0:01:02]} 24. Be1 {[%emt 0:00:55]} a6 {[%emt 0:01:00]} 25. Rc2 {[%emt 0:00:19]} Nxf3 {[%emt 0:01:12]} 26. Kxf3 {[%emt 0:00:36]} Bd5+ {[%emt 0:01:10]} 27. Ke3 {[%emt 0:02:25]} b5 {[%emt 0:00:52]} 28. Rd1 {[%emt 0:02:26]} Rb8 {[%emt 0:01:15]} 29. Rb1 {[%emt 0:00:47]} Rc8 {[%emt 0:01:51]} 30. f3 {[%emt 0:00:34]} e5 {[%emt 0:01:38]} 31. Rd1 {[%emt 0:00:46]} Bc4 {[%emt 0:00:06]} 32. g4 {[%emt 0:01:04]} a5 {[%emt 0:00:58]} 33. Ke4 {[%emt 0:00:46]} Be6 {[%emt 0:01:14]} 34. Rb1 {[%emt 0:01:06]} Bc4 {[%emt 0:00:37]} 35. Bf2 {[%emt 0:00:53]} a4 {[%emt 0:00:23]} 36. a3 {[%emt 0:01:10]} Bb3 {[%emt 0:01:13]} 37. Rcc1 {[%emt 0:00:38]} Be7 {[%emt 0:00:17]} 38. Rb2 {[%emt 0:00:45]} Rd8 {[%emt 0:00:11]} 39. Be1 {[%emt 0:00:28]} c4 {[%emt 0:00:35]} 40. Ra1 {[%emt 0:00:00]} Kf6 {[%emt 0:00:00]} 41. Bg3 {[%emt 0:13:15]} Bd6 {[%emt 0:04:45]} 42. Rd2 {[%emt 0:06:53]} Ke6 {[%emt 0:03:19]} 43. f4 {[%emt 0:04:12]} gxf4 {[%emt 0:03:43]} 44. Bh4 {[%emt 0:00:05]} Rd7 {[%emt 0:05:08]} 45. e3 {[%emt 0:01:55]} fxe3 {[%emt 0:02:30]} 46. Kxe3 {[%emt 0:00:03]} Bc5+ {[%emt 0:00:56]} 47. Ke2 {[%emt 0:00:00]} Rxd2+ {[%emt 0:03:38]} 48. Kxd2 {[%emt 0:00:01]} f5 {[%emt 0:00:09]} 49. gxf5+ {[%emt 0:01:45]} Kxf5 {[%emt 0:00:04]} 50. Bf2 {[%emt 0:02:19]} Be7 {[%emt 0:01:45]} 51. Be3 {[%emt 0:01:38]} h5 {[%emt 0:00:37]} 52. Ke2 {[%emt 0:02:35]} Bc2 {[%emt 0:01:31]} 53. Ra2 {[%emt 0:01:24]} Bb1 {[%emt 0:03:44]} 54. Rb2 {[%emt 0:01:23]} Bd3+ {[%emt 0:00:04]} 55. Kf3 {[%emt 0:00:32]} Bf1 {[%emt 0:00:52]} 56. Rxb5 {[%emt 0:00:41]} Bxh3 {[%emt 0:00:24]} 57. Bc5 {[%emt 0:00:27]} Bg4+ {[%emt 0:00:33]} 58. Kg2 {[%emt 0:00:20]} Bd8 {[%emt 0:01:48]} 59. Rb4 {[%emt 0:00:08]} Bd1 {[%emt 0:02:01]} 60. Rxc4 {[%emt 0:00:06]} Bb3 {[%emt 0:00:09]} 61. Rb4 {[%emt 0:01:01]} Ba5 {[%emt 0:00:02]} 62. Rh4 {[%emt 0:00:27]} Bxc3 {[%emt 0:00:48]} 63. Rxh5+ {[%emt 0:00:05]} Ke4 {[%emt 0:00:16]} 64. Rh3 {[%emt 0:01:04]} Bb2 {[%emt 0:00:40]} 65. Kf1 {[%emt 0:00:18]} Kd5 {[%emt 0:01:05]} 66. Bb4 {[%emt 0:00:11]} Kc4 {[%emt 0:00:52]} 67. Rh4+ {[%emt 0:01:01]} Kd3 {[%emt 0:00:10]} 68. Rh3+ {[%emt 0:00:21]} Kd4 {[%emt 0:00:43]} 69. Ke2 {[%emt 0:00:24]} Bc1 {[%emt 0:01:06]} 70. Rh1 {[%emt 0:00:23]} Bg5 {[%emt 0:00:33]} 71. Rg1 {[%emt 0:00:28]} Bc4+ {[%emt 0:00:21]} 72. Kd1 {[%emt 0:00:42]} Be3 {[%emt 0:00:24]} 73. Rg3 {[%emt 0:00:38]} Bf4 {[%emt 0:00:42]} 74. Rg7 {[%emt 0:00:41]} e4 {[%emt 0:00:32]} 75. Rd7+ {[%emt 0:00:24]} Bd5 {[%emt 0:01:32]} 76. Ra7 {[%emt 0:00:51]} Bg3 {[%emt 0:00:42]} 77. Be1 {[%emt 0:00:20]} Bb3+ {[%emt 0:00:21]} 78. Ke2 {[%emt 0:00:00]} Bc4+ {[%emt 0:00:57]} 79. Kd1 {[%emt 0:00:01]} Bb3+ {[%emt 0:00:01]} 80. Ke2 {[%emt 0:00:10]} Bc4+ {[%emt 0:00:58]} 81. Kd1 {[%emt 0:00:28]} Bb3+ {[%emt 0:00:03]} 82. Ke2 {[%emt 0:00:13]} Bc4+ {[%emt 0:00:58]} 1/2-1/2

[Event "AZE-ch Women 2019"]
[Site "Baku"]
[Date "2019.02.06"]
[Round "3.6"]
[White "Allahverdiyeva, Ayan"]
[Black "Babayeva, Samira"]
[Result "1-0"]
[ECO "B00"]
[WhiteElo "2051"]
[BlackElo "1773"]
[Annotator "NA RC"]
[PlyCount "51"]
[EventDate "2019.02.04"]
[EventType "swiss"]
[EventCountry "AZE"]
[SourceTitle "playchess.com"]
[Source "ChessBase"]
[SourceQuality "1"]
[TimeControl "40/5400+30:1800+30"]

{[%evp 12,46,66,67,94,99,133,132,79,106,132,135,32767,80,90,32767,88,88,91,93,87,77,81,90,412,345,343,350,32767,697,1179,1273,32767,32767,32767,32767,29995]} 1. e4 {[%emt 0:00:00]} d6 {[%emt 0:05:04]} 2. d4 {[%emt 0:00:00]} c6 {[%emt 0:00:07]} 3. Nc3 {[%emt 0:00:29]} Qc7 {[%emt 0:00:03]} 4. f4 {[%emt 0:00:15]} e5 {[%emt 0:00:46]} 5. Nf3 {[%emt 0:00:36]} Nd7 {[%emt 0:00:57]} 6. Bc4 {[%emt 0:11:42]} Be7 {[%emt 0:02:28]} 7. O-O {[%emt 0:00:58]} Ngf6 {[%emt 0:04:44] [#]} 8. fxe5 $1 {[%emt 0:03:42]} dxe5 {[%emt 0:00:21]} 9. Nxe5 {[%emt 0:00:45]} Nxe5 {[%emt 0:00:21]} 10. Bf4 {[%emt 0:00:06] Pin} Bd6 {[%emt 0:01:06]} 11. dxe5 {[%emt 0:00:18]} Bxe5 {[#]} 12. Bxf7+ $1 {[%emt 0:00:47]} Ke7 {[%emt 0:06:08]} 13. Bxe5 {[%emt 0:03:44]} Qxe5 {[%emt 0:00:03]} 14. Bb3 {[%emt 0:06:35]} Ng4 {[%emt 0:00:30]} 15. Rf7+ {[%emt 0:02:40]} Ke8 {[%emt 0:00:56]} 16. g3 {[%emt 0:02:07]} Qc5+ {[%emt 0:01:43]} 17. Kh1 {[%emt 0:00:17]} Nf2+ $2 {[%emt 0:00:10]} (17... Rf8 $16 {is more resistant.} 18. Rxf8+ Qxf8) 18. Rxf2 $1 {[%emt 0:00:25]} Qxf2 {[%emt 0:00:03]} 19. Qh5+ {[%emt 0:02:50]} Kf8 {[%emt 0:04:56]} 20. Bc4 {[%emt 0:02:21]} g6 {[%emt 0:07:44]} 21. Qe5 {[%emt 0:04:09]} Qf3+ {[%emt 0:01:29]} 22. Kg1 {[%emt 0:00:14]} Qe3+ {[%emt 0:00:05]} 23. Kg2 {[%emt 0:00:22]} Rg8 {[%emt 0:10:12]} 24. Qf6+ {[%emt 0:00:14]} Ke8 {[%emt 0:00:14]} 25. Qf7+ {[%emt 0:00:04]} Kd8 {[%emt 0:00:12]} 26. Rd1+ {[%emt 0:00:02]} 1-0

[Event "AZE-ch Women 2019"]
[Site "Baku"]
[Date "2019.02.06"]
[Round "3.8"]
[White "Hajiyeva, Altunay"]
[Black "Ismayil, Malak"]
[Result "0-1"]
[ECO "C44"]
[WhiteElo "1315"]
[BlackElo "1905"]
[Annotator "NA RC"]
[PlyCount "90"]
[EventDate "2019.02.04"]
[EventType "swiss"]
[EventCountry "AZE"]
[SourceTitle "playchess.com"]
[Source "ChessBase"]
[SourceQuality "1"]
[TimeControl "40/5400+30:1800+30"]

{[%evp 14,78,33,16,32767,32767,22,-16,55,-122,32767,32767,32767,32767,-139,-307,32767,-501,-515,-587,-576,-599,-610,-576,-600,-597,-644,-617,-618,-637,-632,-660,-787,-703,-701,-764,32767,-998,-1025,32767,32767,-922,-896,32767,32767,32767,-1877,-5694,-29973,-6632,-12477,-29980,-29970,-29982,-29983,-29982,-29984,-29987,-29988,-29989,-29990,-29990,-29991,-29991,-29992,-29992,-29993]} 1. e4 {[%emt 0:00:00]} e5 {[%emt 0:00:00]} 2. Nf3 {[%emt 0:00:00]} Nc6 {[%emt 0:00:00]} 3. d4 {[%emt 0:00:15]} exd4 {[%emt 0:00:00]} 4. Nxd4 {[%emt 0:00:03]} Qf6 {[%emt 0:00:32]} 5. Be3 {[%emt 0:01:12]} Bc5 {[%emt 0:00:24]} 6. c3 {[%emt 0:00:32]} Nge7 {[%emt 0:00:34]} 7. Bc4 {[%emt 0:12:33]} b6 {[%emt 0:03:21]} 8. O-O {[%emt 0:09:35]} O-O {[%emt 0:00:39]} 9. Qd2 {[%emt 0:16:29]} Qg6 {[%emt 0:13:52]} 10. f3 {[%emt 0:02:21]} a5 {[%emt 0:03:13]} (10... d5 $11 11. Bxd5 Nxd5 12. exd5 Ne5) 11. Qe2 $2 {[%emt 0:15:58]} (11. Nb5 $14 {stays ahead.}) 11... Ne5 {[%emt 0:05:22]} 12. Nd2 {[%emt 0:05:34]} Nxc4 {[%emt 0:02:24]} 13. Nxc4 {[%emt 0:00:47]} Ba6 {[%emt 0:00:42]} 14. a4 $2 {[%emt 0:05:09]} (14. Rfe1 $17) 14... d5 {[%emt 0:13:58]} 15. exd5 {[%emt 0:10:31]} (15. Nb5 $142 Bxb5 16. axb5 dxc4 17. Bxc5 bxc5 18. Qxc4) 15... Nxd5 {[%emt 0:00:14]} 16. Qc2 {[%emt 0:08:21]} Bxc4 {[%emt 0:01:34]} 17. Qxg6 {[%emt 0:02:13]} hxg6 {[%emt 0:00:10]} 18. Rfe1 {[%emt 0:00:12]} Nxe3 {[%emt 0:00:17]} 19. Rxe3 {[%emt 0:00:02]} Rfe8 {[%emt 0:00:34]} 20. Ree1 {[%emt 0:04:46]} Rxe1+ {[%emt 0:00:25]} 21. Rxe1 {[%emt 0:00:02]} Rd8 {[%emt 0:00:14]} 22. Rd1 {[%emt 0:01:19]} Bxd4+ {[%emt 0:00:15]} 23. cxd4 {[%emt 0:00:02]} c5 {[%emt 0:00:14]} 24. d5 {[%emt 0:00:34]} Rxd5 {[%emt 0:00:20]} 25. Rxd5 {[%emt 0:00:15]} Bxd5 {[%emt 0:00:04]} 26. Kf2 {[%emt 0:00:10]} Bc6 {[%emt 0:00:07]} 27. Ke3 {[%emt 0:00:17]} Bxa4 {[%emt 0:00:04]} 28. f4 {[%emt 0:00:31]} f5 {[%emt 0:00:11]} 29. g3 {[%emt 0:00:44]} Kf7 {[%emt 0:00:23]} 30. h3 {[%emt 0:00:37]} Ke6 {[%emt 0:00:09]} 31. Kd3 {[%emt 0:01:02]} Kd5 {[%emt 0:00:06]} 32. Ke3 {[%emt 0:01:16]} Kc4 {[%emt 0:00:18]} 33. g4 {[%emt 0:00:22]} fxg4 {[%emt 0:00:10]} 34. hxg4 {[%emt 0:00:10]} Bd7 {[%emt 0:00:04]} 35. Kd2 {[%emt 0:00:56]} Bxg4 {[%emt 0:00:10]} 36. Kc2 {[%emt 0:00:33]} Bf5+ {[%emt 0:00:04]} 37. Kd2 {[%emt 0:00:26]} Kb3 {[%emt 0:00:10]} 38. Kc1 {[%emt 0:00:13]} a4 {[%emt 0:00:04]} 39. Kd2 {[%emt 0:00:20]} Kxb2 {[%emt 0:00:08]} 40. Ke3 {[%emt 0:00:00]} a3 {[%emt 0:00:00]} 41. Kf3 {[%emt 0:00:32]} Kc3 {[%emt 0:00:28]} 42. Kg3 {[%emt 0:00:11]} a2 {[%emt 0:00:12]} 43. Kh4 {[%emt 0:00:08]} a1=Q {[%emt 0:00:16]} 44. Kg5 {[%emt 0:00:07]} Qg1+ {[%emt 0:00:22]} 45. Kh4 {[%emt 0:00:07]} Qg4# {[%emt 0:00:06]} 0-1

[Event "AZE-ch Women 2019"]
[Site "Baku"]
[Date "2019.02.06"]
[Round "3.9"]
[White "Jafarova, Aysel"]
[Black "Hajiyeva, Laman"]
[Result "0-1"]
[ECO "A06"]
[WhiteElo "1376"]
[BlackElo "2040"]
[Annotator "NA RC"]
[PlyCount "86"]
[EventDate "2019.02.04"]
[EventType "swiss"]
[EventCountry "AZE"]
[SourceTitle "playchess.com"]
[Source "ChessBase"]
[SourceQuality "1"]
[TimeControl "40/5400+30:1800+30"]

{[%evp 8,64,15,0,8,15,12,1,14,-1,-4,32767,32767,32767,32767,32767,-4,-12,-7,-17,32767,-31,-14,32767,-49,-110,32767,32767,32767,32767,-123,-245,-171,-264,-242,-419,-511,-456,-504,32767,-1092,-1182,-1121,-1138,32767,-1162,-1247,-1266,-1342,32767,32767,32767,32767,32767,32767,32767,32767,-29986,-5807]} 1. Nf3 {[%emt 0:00:00]} d5 {[%emt 0:00:00]} 2. g3 {[%emt 0:00:00]} Nf6 {[%emt 0:00:00]} 3. Bg2 {[%emt 0:00:00]} Bf5 {[%emt 0:00:00]} 4. c4 {[%emt 0:00:00]} c6 {[%emt 0:00:00]} 5. b3 {[%emt 0:00:00]} e6 {[%emt 0:00:05]} 6. Bb2 {[%emt 0:00:03]} Be7 {[%emt 0:00:03]} 7. O-O {[%emt 0:00:08]} h6 {[%emt 0:00:04]} 8. d3 {[%emt 0:00:07]} O-O {[%emt 0:00:05]} 9. Nbd2 {[%emt 0:00:11]} Nbd7 {[%emt 0:00:06]} 10. Rc1 {[%emt 0:00:25]} a5 {[%emt 0:01:00]} 11. Qc2 {[%emt 0:14:49]} Rc8 {[%emt 0:04:46]} 12. Rfe1 {[%emt 0:05:56]} Bh7 {[%emt 0:03:03]} 13. Bc3 {[%emt 0:08:04]} b5 {[%emt 0:06:43]} 14. e4 {[%emt 0:06:50]} Nc5 {[%emt 0:08:55]} 15. Nd4 {[%emt 0:06:35]} Qb6 {[%emt 0:10:48]} 16. a3 {[%emt 0:05:14]} (16. Ne2 $11) 16... b4 {[%emt 0:04:56]} 17. axb4 {[%emt 0:00:36]} axb4 {[%emt 0:00:01]} 18. Bb2 {[%emt 0:00:20]} Rfd8 {[%emt 0:08:46]} 19. Kf1 {[%emt 0:06:28]} (19. cxd5 $142 cxd5 20. exd5 Nxd5 21. Nc4) 19... Ng4 {[%emt 0:08:20]} 20. f3 {[%emt 0:06:11]} (20. Bh3 {is a better defense.} Nf6) 20... Ne5 {[%emt 0:05:35]} 21. Re3 {[%emt 0:01:21]} (21. Nxe6 $142 Ncxd3 22. Bd4) 21... Bf6 {[%emt 0:02:16]} 22. Rd1 {[%emt 0:21:28]} Ncxd3 {[%emt 0:05:01]} 23. f4 {[%emt 0:04:54]} Nxb2 {[%emt 0:00:51]} 24. Qxb2 {[%emt 0:01:48]} Ng4 {[%emt 0:00:10]} 25. Rd3 {[%emt 0:01:09]} Ne3+ {[%emt 0:00:53]} 26. Rxe3 {[%emt 0:00:48]} Bxd4 {[%emt 0:00:06]} 27. Qc2 {[%emt 0:00:59]} Bxe3 {[%emt 0:00:03]} 28. Ke2 {[%emt 0:02:47]} Bxd2 {[%emt 0:00:06]} 29. Rxd2 {[%emt 0:00:12]} dxe4 {[%emt 0:00:03]} 30. Rxd8+ {[%emt 0:01:28]} Rxd8 {[%emt 0:00:02]} 31. Bxe4 {[%emt 0:00:15]} Bxe4 {[%emt 0:00:01]} 32. Qxe4 {[%emt 0:00:08]} Qd4 $19 {[%emt 0:00:05]} (32... Qg1 $142 33. Qe3 Qd1+ 34. Kf2 Rd2+ 35. Qxd2 Qxd2+ 36. Kf3) 33. Qc2 {[%emt 0:00:39]} Qg1 {[%emt 0:00:02]} 34. Qe4 {[%emt 0:02:34]} Qd1+ {[%emt 0:00:18]} 35. Ke3 {[%emt 0:00:41]} Qd2+ {[%emt 0:00:02]} 36. Kf3 {[%emt 0:00:27]} Rd3+ {[%emt 0:00:01]} 37. Qxd3 {[%emt 0:01:26]} Qxd3+ {[%emt 0:00:01]} 38. Kg4 {[%emt 0:00:16]} (38. Kf2 Qxb3 39. g4 Qxc4 40. Ke3 b3 41. g5 b2 42. gxh6 b1=Q 43. Kf3 Qbf1+ 44. Kg4 Qfxf4+ 45. Kh5 Qxh6#) 38... f5+ {[%emt 0:00:07]} 39. Kh3 {[%emt 0:00:10]} Qf1+ {[%emt 0:00:04]} 40. Kh4 {[%emt 0:00:00]} Qg2 {[%emt 0:00:00]} 41. h3 {[%emt 0:00:20]} g6 {[%emt 0:00:07]} 42. c5 {[%emt 0:00:16]} Kg7 {[%emt 0:00:04]} 43. g4 {[%emt 0:00:05]} Qf2# {[%emt 0:00:01]} 0-1

[Event "AZE-ch Women 2019"]
[Site "Baku"]
[Date "2019.02.07"]
[Round "4.5"]
[White "Ismayil, Malak"]
[Black "Abdulla, Khayala"]
[Result "0-1"]
[ECO "B42"]
[WhiteElo "1905"]
[BlackElo "2243"]
[Annotator "RC"]
[PlyCount "184"]
[EventDate "2019.02.04"]
[EventType "swiss"]
[EventCountry "AZE"]
[SourceTitle "playchess.com"]
[Source "ChessBase"]
[SourceQuality "1"]
[TimeControl "40/5400+30:1800+30"]

1. e4 {[%emt 0:00:00]} c5 {[%emt 0:00:26]} 2. Nf3 {[%emt 0:00:00]} e6 {[%emt 0:00:07]} 3. d4 {[%emt 0:00:00]} cxd4 {[%emt 0:00:04]} 4. Nxd4 {[%emt 0:00:00]} a6 {[%emt 0:00:21]} 5. Bd3 {[%emt 0:00:55]} Nf6 {[%emt 0:00:03]} 6. Qe2 {[%emt 0:01:15]} d6 {[%emt 0:00:26]} 7. c4 {[%emt 0:03:57]} Qc7 {[%emt 0:00:28]} 8. Nc3 {[%emt 0:00:24]} g6 {[%emt 0:00:20]} 9. f4 {[%emt 0:00:30]} Bg7 {[%emt 0:01:28]} 10. Nf3 {[%emt 0:00:42]} Nbd7 {[%emt 0:03:05]} 11. O-O {[%emt 0:09:09]} O-O {[%emt 0:00:24]} 12. Kh1 {[%emt 0:05:43]} b6 {[%emt 0:02:23]} 13. Bd2 {[%emt 0:01:04]} Bb7 {[%emt 0:01:03]} 14. Rac1 {[%emt 0:09:31]} Rac8 {[%emt 0:01:54]} 15. b4 {[%emt 0:07:01]} Qb8 {[%emt 0:01:58]} 16. Qf2 {[%emt 0:08:40]} Qa8 {[%emt 0:05:03]} 17. Rfe1 {[%emt 0:06:51]} Rc7 {[%emt 0:05:33]} 18. Qe2 {[%emt 0:14:18]} Rfc8 {[%emt 0:04:06]} 19. Nd1 {[%emt 0:03:39]} b5 {[%emt 0:10:37]} 20. Nf2 {[%emt 0:04:02]} bxc4 {[%emt 0:02:55]} 21. Rxc4 {[%emt 0:01:07]} Rxc4 {[%emt 0:01:54]} 22. Bxc4 {[%emt 0:00:08]} d5 {[%emt 0:03:06]} 23. Bd3 {[%emt 0:08:13]} dxe4 {[%emt 0:01:00]} 24. Nxe4 {[%emt 0:00:14]} Nxe4 {[%emt 0:02:02]} 25. Bxe4 {[%emt 0:00:06]} Nf6 {[%emt 0:01:30]} 26. Bxb7 {[%emt 0:02:28]} Qxb7 {[%emt 0:00:02]} 27. Qd3 {[%emt 0:01:33]} Ng4 {[%emt 0:04:01]} 28. Qe2 {[%emt 0:03:40]} Qb6 {[%emt 0:06:38]} 29. h3 {[%emt 0:00:17]} Nf6 {[%emt 0:00:24]} 30. Ne5 {[%emt 0:02:56]} Nd5 {[%emt 0:04:58]} 31. Nd7 {[%emt 0:03:00]} Qd6 {[%emt 0:16:27]} 32. Nc5 {[%emt 0:00:50]} a5 {[%emt 0:00:15]} 33. Nb7 {[%emt 0:03:14]} Qb6 {[%emt 0:00:29]} 34. Nxa5 {[%emt 0:00:09]} Rc2 {[%emt 0:01:58]} 35. Qd3 {[%emt 0:01:12]} Rxd2 {[%emt 0:06:58]} 36. Qxd2 {[%emt 0:00:10]} Bc3 {[%emt 0:00:04]} 37. Qc1 {[%emt 0:00:49]} Qxb4 {[%emt 0:00:36]} 38. Nc6 {[%emt 0:00:11]} Qd6 {[%emt 0:03:23]} 39. Ne5 {[%emt 0:00:13]} Bxe1 {[%emt 0:00:45]} 40. Qxe1 {[%emt 0:00:00]} Nxf4 {[%emt 0:00:00]} 41. Nf3 {[%emt 0:01:29]} f6 {[%emt 0:04:47]} 42. a4 {[%emt 0:04:50]} e5 {[%emt 0:02:16]} 43. Qe4 {[%emt 0:08:18]} Nd3 {[%emt 0:01:34]} 44. Qc4+ {[%emt 0:02:04]} Kg7 {[%emt 0:00:24]} 45. a5 {[%emt 0:00:46]} e4 {[%emt 0:04:51]} 46. Nd4 {[%emt 0:00:18]} Qg3 {[%emt 0:04:07]} 47. a6 {[%emt 0:00:32]} Nf2+ {[%emt 0:01:06]} 48. Kg1 {[%emt 0:00:05]} Nxh3+ {[%emt 0:00:10]} 49. Kh1 {[%emt 0:00:04]} Nf4 {[%emt 0:14:16]} 50. Ne6+ {[%emt 0:01:36]} Nxe6 {[%emt 0:00:22]} 51. Qxe6 {[%emt 0:00:04]} e3 {[%emt 0:01:29]} 52. a7 {[%emt 0:00:24]} Qh4+ {[%emt 0:00:56]} 53. Kg1 {[%emt 0:00:24]} Qf2+ {[%emt 0:00:24]} 54. Kh2 {[%emt 0:00:07]} e2 {[%emt 0:01:10]} 55. a8=Q {[%emt 0:01:14]} Qh4+ {[%emt 0:01:02]} 56. Qh3 {[%emt 0:01:13]} Qxh3+ {[%emt 0:00:19]} 57. Kxh3 {[%emt 0:00:05]} e1=Q {[%emt 0:00:05]} 58. Kh2 {[%emt 0:02:24]} Qh4+ {[%emt 0:00:20]} 59. Kg1 {[%emt 0:00:07]} Qd4+ {[%emt 0:00:03]} 60. Kh1 {[%emt 0:00:09]} g5 {[%emt 0:00:11]} 61. Qb7+ {[%emt 0:00:20]} Kg6 {[%emt 0:00:18]} 62. Qb1+ {[%emt 0:00:24]} f5 {[%emt 0:00:19]} 63. Qb3 {[%emt 0:00:04]} Qd7 {[%emt 0:01:48]} 64. Qb6+ {[%emt 0:00:59]} Kh5 {[%emt 0:00:21]} 65. Qb3 {[%emt 0:00:41]} g4 {[%emt 0:01:19]} 66. Qe3 {[%emt 0:00:11]} Qd6 {[%emt 0:01:20]} 67. g3 {[%emt 0:00:14]} Qd1+ {[%emt 0:00:33]} 68. Kg2 {[%emt 0:00:27]} Qc2+ {[%emt 0:00:26]} 69. Kg1 {[%emt 0:00:34]} Qb1+ {[%emt 0:00:36]} 70. Kh2 {[%emt 0:00:19]} Qc2+ {[%emt 0:00:43]} 71. Kg1 {[%emt 0:00:17]} Qe4 {[%emt 0:00:16]} 72. Qb3 {[%emt 0:00:22]} Qe7 {[%emt 0:01:24]} 73. Qd3 {[%emt 0:01:44]} Kg5 {[%emt 0:00:42]} 74. Qd2+ {[%emt 0:00:05]} Kg6 {[%emt 0:00:04]} 75. Qc3 {[%emt 0:00:15]} h5 {[%emt 0:00:39]} 76. Qc6+ {[%emt 0:00:04]} Kh7 {[%emt 0:00:59]} 77. Qc3 {[%emt 0:01:22]} h4 {[%emt 0:00:26]} 78. gxh4 {[%emt 0:00:17]} Qxh4 {[%emt 0:00:09]} 79. Qc7+ {[%emt 0:00:10]} Kg6 {[%emt 0:00:08]} 80. Qc6+ {[%emt 0:00:22]} Qf6 {[%emt 0:00:16]} 81. Qe8+ {[%emt 0:00:14]} Qf7 {[%emt 0:00:17]} 82. Qc6+ {[%emt 0:00:04]} Kg5 {[%emt 0:00:05]} 83. Qc1+ {[%emt 0:00:05]} f4 {[%emt 0:00:38]} 84. Qc5+ {[%emt 0:00:04]} Qf5 {[%emt 0:00:22]} 85. Qe7+ {[%emt 0:00:04]} Qf6 {[%emt 0:00:08]} 86. Qc5+ {[%emt 0:00:05]} Kh4 {[%emt 0:00:10]} 87. Qf2+ {[%emt 0:00:08]} g3 {[%emt 0:00:34]} 88. Qf3 {[%emt 0:00:11]} Qd4+ {[%emt 0:00:17]} 89. Kf1 {[%emt 0:00:45]} Qe3 {[%emt 0:01:18]} 90. Qh1+ {[%emt 0:00:05]} Kg4 {[%emt 0:00:16]} 91. Qh3+ {[%emt 0:00:05]} Kg5 {[%emt 0:00:04]} 92. Kg2 {[%emt 0:00:38]} f3+ {[%emt 0:00:28]} 0-1